[Event "Titled Tuesday Blitz July 27 2021"]
[White "Martinez Alcantara, Jose Eduardo"]
[Black "Vokhidov, Shamsiddin"]
[WhiteFideId "3805662"]
[BlackFideId "14204223"]
[WhiteElo "2690"]
[BlackElo "2572"]
[Result "1-0"]
[Round "08"]
[TimeControl "180+1"]
[Date "2021.07.27"]
[WhiteClock "0:00:05"]
[BlackClock "0:00:04"]

1. e4 {[%clk 0:03:00]}  c5 {[%clk 0:02:59]} 2. Nf3 {[%clk 0:03:00]}  e6 {[%clk 0:02:59]} 3. g3 {[%clk 0:03:00]}  Nc6 {[%clk 0:02:59]} 4. Bg2 {[%clk 0:03:00]}  Nf6 {[%clk 0:03:00]} 5. Qe2 {[%clk 0:03:00]}  e5 {[%clk 0:02:59]} 6. O-O {[%clk 0:03:00]}  Be7 {[%clk 0:02:59]} 7. c3 {[%clk 0:02:59]}  O-O {[%clk 0:02:59]} 8. Na3 {[%clk 0:02:59]}  Re8 {[%clk 0:02:59]} 9. d3 {[%clk 0:02:59]}  h6 {[%clk 0:02:59]} 10. Nc4 {[%clk 0:02:59]}  Bf8 {[%clk 0:02:59]} 11. Ne3 {[%clk 0:02:55]}  d5 {[%clk 0:02:59]} 12. Nh4 {[%clk 0:02:46]}  d4 {[%clk 0:02:54]} 13. Nd5 {[%clk 0:02:40]}  Be6 {[%clk 0:02:36]} 14. c4 {[%clk 0:02:34]}  b5 {[%clk 0:02:03]} 15. cxb5 {[%clk 0:02:15]}  Bxd5 {[%clk 0:02:01]} 16. exd5 {[%clk 0:02:11]}  Nb4 {[%clk 0:02:02]} 17. d6 {[%clk 0:02:11]}  Rb8 {[%clk 0:02:01]} 18. a3 {[%clk 0:02:01]}  Nbd5 {[%clk 0:02:00]} 19. a4 {[%clk 0:01:49]}  Qxd6 {[%clk 0:01:57]} 20. Nf5 {[%clk 0:01:40]}  Qe6 {[%clk 0:01:57]} 21. Bh3 {[%clk 0:01:35]}  Kh7 {[%clk 0:01:50]} 22. Qf3 {[%clk 0:01:26]}  Nb4 {[%clk 0:01:31]} 23. Bd2 {[%clk 0:01:21]}  e4 {[%clk 0:01:20]} 24. dxe4 {[%clk 0:01:21]}  Nxe4 {[%clk 0:01:21]} 25. Bxb4 {[%clk 0:01:15]}  cxb4 {[%clk 0:01:20]} 26. Nxg7 {[%clk 0:00:49]}  Qxh3 {[%clk 0:01:15]} 27. Nxe8 {[%clk 0:00:48]}  f5 {[%clk 0:00:39]} 28. Nc7 {[%clk 0:00:36]}  Nd2 {[%clk 0:00:37]} 29. Qd3 {[%clk 0:00:33]}  Nxf1 {[%clk 0:00:37]} 30. Rxf1 {[%clk 0:00:34]}  Qg4 {[%clk 0:00:37]} 31. Ne6 {[%clk 0:00:27]}  Qe4 {[%clk 0:00:33]} 32. Qxe4 {[%clk 0:00:22]}  fxe4 {[%clk 0:00:34]} 33. Nxd4 {[%clk 0:00:23]}  Bc5 {[%clk 0:00:20]} 34. Ne6 {[%clk 0:00:18]}  Bb6 {[%clk 0:00:19]} 35. Re1 {[%clk 0:00:18]}  Rc8 {[%clk 0:00:18]} 36. Rxe4 {[%clk 0:00:17]}  Rc2 {[%clk 0:00:18]} 37. Rxb4 {[%clk 0:00:12]}  Rxf2 {[%clk 0:00:18]} 38. Kh1 {[%clk 0:00:11]}  Re2 {[%clk 0:00:17]} 39. Nf4 {[%clk 0:00:10]}  Rc2 {[%clk 0:00:16]} 40. Rb3 {[%clk 0:00:08]}  Bd4 {[%clk 0:00:15]} 41. a5 {[%clk 0:00:07]}  Rc7 {[%clk 0:00:08]} 42. Kg2 {[%clk 0:00:06]}  Rb7 {[%clk 0:00:06]} 43. Kf3 {[%clk 0:00:06]}  Bg1 {[%clk 0:00:04]} 44. h4 {[%clk 0:00:06]}  Kg7 {[%clk 0:00:04]} 45. Kg2 {[%clk 0:00:05]}  Be3 {[%clk 0:00:04]} 46. Rxe3 {[%clk 0:00:04]}  Rxb5 {[%clk 0:00:04]} 47. b3 {[%clk 0:00:05]} 1-0


[Site "https://www.chess.com"]

[Event "Titled Tuesday Blitz July 27 2021"]
[White "Miranda, Rafael"]
[Black "Manukian, Artak"]
[WhiteFideId "130990"]
[BlackFideId "13301373"]
[WhiteElo "2159"]
[BlackElo "2357"]
[Result "1/2-1/2"]
[Round "08"]
[TimeControl "180+1"]
[Date "2021.07.27"]
[WhiteClock "0:00:22"]
[BlackClock "0:00:07"]

1. e4 {[%clk 0:03:00]}  c6 {[%clk 0:02:48]} 2. d4 {[%clk 0:03:00]}  d5 {[%clk 0:02:48]} 3. e5 {[%clk 0:03:00]}  Bf5 {[%clk 0:02:48]} 4. Nf3 {[%clk 0:03:00]}  e6 {[%clk 0:02:48]} 5. Bd3 {[%clk 0:02:59]}  Bxd3 {[%clk 0:02:47]} 6. Qxd3 {[%clk 0:03:00]}  Qa5+ {[%clk 0:02:47]} 7. Nc3 {[%clk 0:02:56]}  Qa6 {[%clk 0:02:47]} 8. Qxa6 {[%clk 0:02:48]}  Nxa6 {[%clk 0:02:48]} 9. a3 {[%clk 0:02:49]}  Ne7 {[%clk 0:02:41]} 10. Ne2 {[%clk 0:02:48]}  Nf5 {[%clk 0:02:41]} 11. g4 {[%clk 0:02:48]}  Ne7 {[%clk 0:02:40]} 12. Bg5 {[%clk 0:02:48]}  h5 {[%clk 0:02:39]} 13. gxh5 {[%clk 0:02:47]}  Rxh5 {[%clk 0:02:35]} 14. h4 {[%clk 0:02:46]}  Nf5 {[%clk 0:02:34]} 15. Ng3 {[%clk 0:02:45]}  Nxg3 {[%clk 0:02:34]} 16. fxg3 {[%clk 0:02:46]}  c5 {[%clk 0:02:32]} 17. c3 {[%clk 0:02:38]}  Rc8 {[%clk 0:02:31]} 18. Kd2 {[%clk 0:02:38]}  Kd7 {[%clk 0:02:29]} 19. Rhf1 {[%clk 0:02:35]}  Ke8 {[%clk 0:02:13]} 20. Be3 {[%clk 0:02:28]}  f6 {[%clk 0:02:07]} 21. exf6 {[%clk 0:02:21]}  gxf6 {[%clk 0:02:08]} 22. g4 {[%clk 0:02:21]}  Rh8 {[%clk 0:02:07]} 23. g5 {[%clk 0:02:22]}  Be7 {[%clk 0:02:03]} 24. g6 {[%clk 0:02:18]}  Kf8 {[%clk 0:01:37]} 25. Rh1 {[%clk 0:02:17]}  Rh5 {[%clk 0:01:36]} 26. Rag1 {[%clk 0:02:14]}  Kg7 {[%clk 0:01:36]} 27. Ne1 {[%clk 0:02:14]}  e5 {[%clk 0:01:32]} 28. dxe5 {[%clk 0:02:11]}  fxe5 {[%clk 0:01:32]} 29. Nd3 {[%clk 0:02:12]}  Rch8 {[%clk 0:01:16]} 30. Rf1 {[%clk 0:02:05]}  Rf8 {[%clk 0:01:04]} 31. Rfg1 {[%clk 0:01:54]}  c4 {[%clk 0:00:55]} 32. Nxe5 {[%clk 0:01:52]}  Rxh4 {[%clk 0:00:45]} 33. Rxh4 {[%clk 0:01:48]}  Bxh4 {[%clk 0:00:46]} 34. Rh1 {[%clk 0:01:48]}  Rh8 {[%clk 0:00:44]} 35. Rg1 {[%clk 0:01:02]}  Nc7 {[%clk 0:00:27]} 36. Nf7 {[%clk 0:00:57]}  Rg8 {[%clk 0:00:20]} 37. Bd4+ {[%clk 0:00:43]}  Bf6 {[%clk 0:00:20]} 38. Be3 {[%clk 0:00:44]}  Be7 {[%clk 0:00:14]} 39. Bd4+ {[%clk 0:00:34]}  Bf6 {[%clk 0:00:14]} 40. Bxa7 {[%clk 0:00:29]}  Ne6 {[%clk 0:00:13]} 41. Be3 {[%clk 0:00:29]}  Be7 {[%clk 0:00:12]} 42. Nh6 {[%clk 0:00:17]}  Rf8 {[%clk 0:00:10]} 43. Ke2 {[%clk 0:00:17]}  Nf4+ {[%clk 0:00:09]} 44. Bxf4 {[%clk 0:00:18]}  Rxf4 {[%clk 0:00:10]} 45. Ng4 {[%clk 0:00:18]}  Bd6 {[%clk 0:00:09]} 46. Ne3 {[%clk 0:00:17]}  Re4 {[%clk 0:00:06]} 47. Kf3 {[%clk 0:00:18]}  Rxe3+ {[%clk 0:00:07]} 48. Kxe3 {[%clk 0:00:17]}  Bc5+ {[%clk 0:00:07]} 49. Kf4 {[%clk 0:00:18]}  Bxg1 {[%clk 0:00:07]} 50. Ke5 {[%clk 0:00:19]}  Kxg6 {[%clk 0:00:07]} 51. Kxd5 {[%clk 0:00:19]}  Kf5 {[%clk 0:00:07]} 52. Kxc4 {[%clk 0:00:20]}  Ke6 {[%clk 0:00:08]} 53. Kb5 {[%clk 0:00:21]}  Kd7 {[%clk 0:00:08]} 54. c4 {[%clk 0:00:21]}  Kc7 {[%clk 0:00:09]} 55. b4 {[%clk 0:00:22]}  Be3 {[%clk 0:00:08]} 56. a4 {[%clk 0:00:23]}  Bd2 {[%clk 0:00:09]} 57. c5 {[%clk 0:00:23]}  Be1 {[%clk 0:00:08]} 58. Kc4 {[%clk 0:00:22]}  Bd2 {[%clk 0:00:07]} 59. a5 {[%clk 0:00:22]}  Be1 {[%clk 0:00:07]} 60. Kb5 {[%clk 0:00:23]}  Bd2 {[%clk 0:00:07]} 61. Ka4 {[%clk 0:00:23]}  Kc6 {[%clk 0:00:07]} 62. b5+ {[%clk 0:00:21]}  Kxc5 {[%clk 0:00:07]} 63. a6 {[%clk 0:00:21]}  bxa6 {[%clk 0:00:06]} 64. bxa6 {[%clk 0:00:22]}  Kb6 {[%clk 0:00:07]} 65. a7 {[%clk 0:00:22]}  Kxa7 {[%clk 0:00:07]} 1/2-1/2


[Site "https://www.chess.com"]

[Event "Titled Tuesday Blitz July 27 2021"]
[White "Mirzoev, Azer"]
[Black "Arnold, Ken"]
[WhiteFideId "13400304"]
[BlackFideId "2056836"]
[WhiteElo "2525"]
[BlackElo "2500"]
[Result "1-0"]
[Round "08"]
[TimeControl "180+1"]
[Date "2021.07.27"]
[WhiteClock "0:01:54"]
[BlackClock "0:01:34"]

1. d4 {[%clk 0:02:59]}  Nf6 {[%clk 0:02:59]} 2. c4 {[%clk 0:02:59]}  g6 {[%clk 0:02:59]} 3. Nc3 {[%clk 0:02:59]}  d5 {[%clk 0:02:59]} 4. e4 {[%clk 0:03:00]}  dxe4 {[%clk 0:02:59]} 5. Bg5 {[%clk 0:03:00]}  Bg7 {[%clk 0:02:56]} 6. Nge2 {[%clk 0:02:58]}  O-O {[%clk 0:02:56]} 7. Qd2 {[%clk 0:02:58]}  Re8 {[%clk 0:02:51]} 8. O-O-O {[%clk 0:02:54]}  Nc6 {[%clk 0:02:48]} 9. Ng3 {[%clk 0:02:48]}  Bg4 {[%clk 0:02:41]} 10. Be2 {[%clk 0:02:40]}  Bxe2 {[%clk 0:02:37]} 11. Ngxe2 {[%clk 0:02:40]}  Nb4 {[%clk 0:02:33]} 12. Kb1 {[%clk 0:02:38]}  Nd3 {[%clk 0:02:30]} 13. Ng3 {[%clk 0:02:38]}  c5 {[%clk 0:02:28]} 14. d5 {[%clk 0:02:38]}  Ne5 {[%clk 0:02:22]} 15. Qe2 {[%clk 0:02:36]}  a6 {[%clk 0:02:15]} 16. Ngxe4 {[%clk 0:02:33]}  Nxe4 {[%clk 0:02:14]} 17. Nxe4 {[%clk 0:02:33]}  b5 {[%clk 0:02:04]} 18. d6 {[%clk 0:02:27]}  Nxc4 {[%clk 0:02:00]} 19. dxe7 {[%clk 0:02:24]}  Qc7 {[%clk 0:01:49]} 20. Nf6+ {[%clk 0:01:59]}  Bxf6 {[%clk 0:01:37]} 21. Bxf6 {[%clk 0:02:00]}  Qf4 {[%clk 0:01:34]} 22. Qf3 {[%clk 0:01:54]} 1-0


[Site "https://www.chess.com"]

[Event "Titled Tuesday Blitz July 27 2021"]
[White "Molina, Roberto Junio Brito"]
[Black "Jeet, Jain"]
[WhiteFideId "2109450"]
[BlackFideId "5073022"]
[WhiteElo "2747"]
[BlackElo "2496"]
[Result "1-0"]
[Round "08"]
[TimeControl "180+1"]
[Date "2021.07.27"]
[WhiteClock "0:00:14"]
[BlackClock "0:00:08"]

1. d4 {[%clk 0:03:00]}  d5 {[%clk 0:03:00]} 2. c4 {[%clk 0:03:01]}  e6 {[%clk 0:03:00]} 3. Nc3 {[%clk 0:03:00]}  Be7 {[%clk 0:03:00]} 4. cxd5 {[%clk 0:03:00]}  exd5 {[%clk 0:03:01]} 5. Bf4 {[%clk 0:03:00]}  Nf6 {[%clk 0:03:01]} 6. e3 {[%clk 0:03:00]}  Bf5 {[%clk 0:03:01]} 7. Bd3 {[%clk 0:02:58]}  Bxd3 {[%clk 0:03:00]} 8. Qxd3 {[%clk 0:02:59]}  c6 {[%clk 0:02:55]} 9. Nge2 {[%clk 0:02:59]}  O-O {[%clk 0:02:53]} 10. h3 {[%clk 0:02:58]}  Nbd7 {[%clk 0:02:51]} 11. O-O-O {[%clk 0:02:57]}  b5 {[%clk 0:02:50]} 12. Kb1 {[%clk 0:02:55]}  b4 {[%clk 0:02:49]} 13. Na4 {[%clk 0:02:55]}  Nb6 {[%clk 0:02:39]} 14. Qc2 {[%clk 0:02:53]}  Nxa4 {[%clk 0:02:35]} 15. Qxa4 {[%clk 0:02:53]}  Qb6 {[%clk 0:02:35]} 16. Nc1 {[%clk 0:02:52]}  c5 {[%clk 0:02:30]} 17. dxc5 {[%clk 0:02:50]}  Bxc5 {[%clk 0:02:31]} 18. Nb3 {[%clk 0:02:48]}  Bd6 {[%clk 0:02:27]} 19. Qa5 {[%clk 0:02:32]}  Qxa5 {[%clk 0:02:20]} 20. Nxa5 {[%clk 0:02:32]}  Bxf4 {[%clk 0:02:20]} 21. exf4 {[%clk 0:02:32]}  Rfe8 {[%clk 0:02:10]} 22. Rhe1 {[%clk 0:02:25]}  g6 {[%clk 0:02:02]} 23. Nc6 {[%clk 0:02:22]}  a5 {[%clk 0:01:52]} 24. f3 {[%clk 0:02:17]}  Kf8 {[%clk 0:01:46]} 25. Ne5 {[%clk 0:02:15]}  Kg7 {[%clk 0:01:45]} 26. Rd4 {[%clk 0:02:13]}  Rac8 {[%clk 0:01:33]} 27. g4 {[%clk 0:02:07]}  Rc5 {[%clk 0:01:29]} 28. Rc1 {[%clk 0:02:07]}  Rec8 {[%clk 0:01:25]} 29. Rxc5 {[%clk 0:02:06]}  Rxc5 {[%clk 0:01:26]} 30. Rd3 {[%clk 0:01:25]}  Ne8 {[%clk 0:01:24]} 31. Nd7 {[%clk 0:01:22]}  Rb5 {[%clk 0:01:23]} 32. Re3 {[%clk 0:01:19]}  Nd6 {[%clk 0:01:20]} 33. b3 {[%clk 0:01:15]}  Rb7 {[%clk 0:01:18]} 34. Nc5 {[%clk 0:01:15]}  Rc7 {[%clk 0:01:17]} 35. Na6 {[%clk 0:00:54]}  Rc6 {[%clk 0:00:57]} 36. Nb8 {[%clk 0:00:54]}  Rc8 {[%clk 0:00:56]} 37. Nd7 {[%clk 0:00:52]}  Nb5 {[%clk 0:00:56]} 38. Kb2 {[%clk 0:00:50]}  Nc3 {[%clk 0:00:50]} 39. Rd3 {[%clk 0:00:50]}  f6 {[%clk 0:00:47]} 40. Nb6 {[%clk 0:00:47]}  Rd8 {[%clk 0:00:43]} 41. a3 {[%clk 0:00:46]}  d4 {[%clk 0:00:32]} 42. Nc4 {[%clk 0:00:41]}  Ne2 {[%clk 0:00:29]} 43. Rd2 {[%clk 0:00:29]}  Nxf4 {[%clk 0:00:27]} 44. h4 {[%clk 0:00:30]}  f5 {[%clk 0:00:22]} 45. gxf5 {[%clk 0:00:28]}  gxf5 {[%clk 0:00:23]} 46. Nxa5 {[%clk 0:00:28]}  bxa3+ {[%clk 0:00:24]} 47. Kxa3 {[%clk 0:00:29]}  d3 {[%clk 0:00:22]} 48. Nc6 {[%clk 0:00:27]}  Rd6 {[%clk 0:00:21]} 49. Ne5 {[%clk 0:00:27]}  Kf6 {[%clk 0:00:19]} 50. Nc4 {[%clk 0:00:27]}  Ra6+ {[%clk 0:00:19]} 51. Kb2 {[%clk 0:00:26]}  Ke6 {[%clk 0:00:19]} 52. Ne3 {[%clk 0:00:19]}  Ke5 {[%clk 0:00:18]} 53. Kc3 {[%clk 0:00:18]}  Rc6+ {[%clk 0:00:16]} 54. Nc4+ {[%clk 0:00:19]}  Kf6 {[%clk 0:00:16]} 55. Kd4 {[%clk 0:00:18]}  Ng6 {[%clk 0:00:08]} 56. h5 {[%clk 0:00:16]}  Nf4 {[%clk 0:00:09]} 57. b4 {[%clk 0:00:15]}  Nxh5 {[%clk 0:00:08]} 58. b5 {[%clk 0:00:14]}  Rc8 {[%clk 0:00:09]} 59. b6 {[%clk 0:00:13]}  Nf4 {[%clk 0:00:09]} 60. b7 {[%clk 0:00:11]}  Rb8 {[%clk 0:00:09]} 61. Rb2 {[%clk 0:00:10]}  Ne6+ {[%clk 0:00:07]} 62. Kd5 {[%clk 0:00:11]}  Nd8 {[%clk 0:00:07]} 63. Nd6 {[%clk 0:00:11]}  d2 {[%clk 0:00:07]} 64. Rxd2 {[%clk 0:00:11]}  Nxb7 {[%clk 0:00:07]} 65. Rb2 {[%clk 0:00:11]}  Rg8 {[%clk 0:00:06]} 66. Rxb7 {[%clk 0:00:11]}  Rg3 {[%clk 0:00:06]} 67. Rf7+ {[%clk 0:00:11]}  Kg6 {[%clk 0:00:07]} 68. Rxf5 {[%clk 0:00:12]}  Rg5 {[%clk 0:00:06]} 69. Rxg5+ {[%clk 0:00:11]}  Kxg5 {[%clk 0:00:07]} 70. Ke5 {[%clk 0:00:12]}  h5 {[%clk 0:00:07]} 71. f4+ {[%clk 0:00:12]}  Kg4 {[%clk 0:00:08]} 72. Nf5 {[%clk 0:00:11]}  Kf3 {[%clk 0:00:07]} 73. Nh4+ {[%clk 0:00:11]}  Kg4 {[%clk 0:00:07]} 74. Ng6 {[%clk 0:00:12]}  h4 {[%clk 0:00:06]} 75. Nxh4 {[%clk 0:00:13]}  Kxh4 {[%clk 0:00:07]} 76. f5 {[%clk 0:00:13]}  Kg5 {[%clk 0:00:08]} 77. Ke6 {[%clk 0:00:14]} 1-0


[Site "https://www.chess.com"]

[Event "Titled Tuesday Blitz July 27 2021"]
[White "Mortazavi, Ali"]
[Black "Moroni, Luca Jr"]
[WhiteFideId "401323"]
[BlackFideId "865834"]
[WhiteElo "2339"]
[BlackElo "2491"]
[Result "0-1"]
[Round "08"]
[TimeControl "180+1"]
[Date "2021.07.27"]
[WhiteClock "0:00:02"]
[BlackClock "0:00:01"]

1. e4 {[%clk 0:02:56]}  e5 {[%clk 0:02:58]} 2. Bc4 {[%clk 0:02:56]}  Nf6 {[%clk 0:02:58]} 3. d3 {[%clk 0:02:56]}  Nc6 {[%clk 0:02:55]} 4. Nf3 {[%clk 0:02:57]}  Bc5 {[%clk 0:02:54]} 5. c3 {[%clk 0:02:58]}  d6 {[%clk 0:02:55]} 6. Bb3 {[%clk 0:02:58]}  a6 {[%clk 0:02:55]} 7. Nbd2 {[%clk 0:02:59]}  Be6 {[%clk 0:02:53]} 8. Bc2 {[%clk 0:02:58]}  Ng4 {[%clk 0:02:52]} 9. O-O {[%clk 0:02:48]}  Bxf2+ {[%clk 0:02:52]} 10. Rxf2 {[%clk 0:02:48]}  Ne3 {[%clk 0:02:53]} 11. Qe2 {[%clk 0:02:44]}  Nxc2 {[%clk 0:02:53]} 12. Rb1 {[%clk 0:02:36]}  Bxa2 {[%clk 0:02:52]} 13. b4 {[%clk 0:02:23]}  Bxb1 {[%clk 0:02:46]} 14. Nxb1 {[%clk 0:02:24]}  N2xb4 {[%clk 0:02:44]} 15. cxb4 {[%clk 0:02:24]}  O-O {[%clk 0:02:23]} 16. Nc3 {[%clk 0:01:56]}  Nxb4 {[%clk 0:02:09]} 17. g3 {[%clk 0:01:46]}  d5 {[%clk 0:01:38]} 18. exd5 {[%clk 0:01:28]}  Nxd5 {[%clk 0:01:38]} 19. Ne4 {[%clk 0:01:28]}  f5 {[%clk 0:00:46]} 20. Neg5 {[%clk 0:01:24]}  Qd6 {[%clk 0:00:46]} 21. Nxe5 {[%clk 0:01:13]}  Rae8 {[%clk 0:00:42]} 22. Bb2 {[%clk 0:00:59]}  f4 {[%clk 0:00:37]} 23. Qh5 {[%clk 0:00:41]}  Nf6 {[%clk 0:00:27]} 24. Qe2 {[%clk 0:00:25]}  fxg3 {[%clk 0:00:22]} 25. hxg3 {[%clk 0:00:25]}  h6 {[%clk 0:00:22]} 26. Ngf3 {[%clk 0:00:21]}  Ng4 {[%clk 0:00:21]} 27. Rf1 {[%clk 0:00:14]}  Rxf3 {[%clk 0:00:17]} 28. Rxf3 {[%clk 0:00:10]}  Rxe5 {[%clk 0:00:13]} 29. Bxe5 {[%clk 0:00:08]}  Nxe5 {[%clk 0:00:14]} 30. Re3 {[%clk 0:00:08]}  Qd4 {[%clk 0:00:12]} 31. Kg2 {[%clk 0:00:07]}  Qd5+ {[%clk 0:00:12]} 32. Kh2 {[%clk 0:00:07]}  Ng6 {[%clk 0:00:07]} 33. Re8+ {[%clk 0:00:06]}  Kh7 {[%clk 0:00:08]} 34. Qe4 {[%clk 0:00:04]}  Qf7 {[%clk 0:00:07]} 35. Re6 {[%clk 0:00:03]}  a5 {[%clk 0:00:06]} 36. Kh3 {[%clk 0:00:03]}  a4 {[%clk 0:00:06]} 37. Kg4 {[%clk 0:00:03]}  a3 {[%clk 0:00:01]} 38. Kh5 {[%clk 0:00:03]}  a2 {[%clk 0:00:01]} 39. Rxg6 {[%clk 0:00:02]}  a1=Q {[%clk 0:00:01]} 0-1


[Site "https://www.chess.com"]

[Event "Titled Tuesday Blitz July 27 2021"]
[White "Murzin, Volodar"]
[Black "Parkhov, Yair"]
[WhiteFideId "44155573"]
[BlackFideId "2813408"]
[WhiteElo "2541"]
[BlackElo "2131"]
[Result "1-0"]
[Round "08"]
[TimeControl "180+1"]
[Date "2021.07.27"]
[WhiteClock "0:01:07"]
[BlackClock "0:00:02"]

1. e4 {[%clk 0:03:00]}  c6 {[%clk 0:02:55]} 2. d3 {[%clk 0:02:58]}  e5 {[%clk 0:02:50]} 3. Nd2 {[%clk 0:02:53]}  d5 {[%clk 0:02:48]} 4. Ngf3 {[%clk 0:02:51]}  Bd6 {[%clk 0:02:47]} 5. c3 {[%clk 0:02:49]}  Nf6 {[%clk 0:02:46]} 6. Be2 {[%clk 0:02:48]}  O-O {[%clk 0:02:45]} 7. O-O {[%clk 0:02:45]}  Re8 {[%clk 0:02:46]} 8. Re1 {[%clk 0:02:45]}  Nbd7 {[%clk 0:02:44]} 9. Qc2 {[%clk 0:02:40]}  Qc7 {[%clk 0:02:39]} 10. Rb1 {[%clk 0:02:35]}  a5 {[%clk 0:02:37]} 11. b3 {[%clk 0:02:33]}  Nf8 {[%clk 0:02:22]} 12. Bb2 {[%clk 0:02:28]}  Ng6 {[%clk 0:01:59]} 13. Bf1 {[%clk 0:02:25]}  dxe4 {[%clk 0:01:52]} 14. dxe4 {[%clk 0:02:23]}  Bc5 {[%clk 0:01:42]} 15. h3 {[%clk 0:02:17]}  h6 {[%clk 0:01:16]} 16. a3 {[%clk 0:02:16]}  b5 {[%clk 0:01:13]} 17. b4 {[%clk 0:02:14]}  Ba7 {[%clk 0:01:10]} 18. c4 {[%clk 0:02:12]}  axb4 {[%clk 0:01:09]} 19. axb4 {[%clk 0:02:10]}  bxc4 {[%clk 0:01:06]} 20. Nxc4 {[%clk 0:02:09]}  Rb8 {[%clk 0:00:54]} 21. Ba1 {[%clk 0:01:49]}  Ba6 {[%clk 0:00:08]} 22. Na5 {[%clk 0:01:18]}  Bxf1 {[%clk 0:00:07]} 23. Rxf1 {[%clk 0:01:19]}  c5 {[%clk 0:00:05]} 24. Rfc1 {[%clk 0:01:13]}  Qb6 {[%clk 0:00:02]} 25. Nc4 {[%clk 0:01:09]}  Qc6 {[%clk 0:00:01]} 26. b5 {[%clk 0:01:07]}  Qxe4 {[%clk 0:00:01]} 27. Qxe4 {[%clk 0:01:06]}  Nxe4 {[%clk 0:00:02]} 28. b6 {[%clk 0:01:06]}  Bxb6 {[%clk 0:00:02]} 29. Nxb6 {[%clk 0:01:07]} 1-0


[Site "https://www.chess.com"]

[Event "Titled Tuesday Blitz July 27 2021"]
[White "Nakamura, Hikaru"]
[Black "Le, Tuan Minh"]
[WhiteFideId "2016192"]
[BlackFideId "12401153"]
[WhiteElo "2900"]
[BlackElo "2450"]
[Result "1-0"]
[Round "08"]
[TimeControl "180+1"]
[Date "2021.07.27"]
[WhiteClock "0:00:04"]
[BlackClock "0:00:01"]

1. Nf3 {[%clk 0:03:00]}  d5 {[%clk 0:02:59]} 2. e3 {[%clk 0:03:00]}  Nf6 {[%clk 0:02:59]} 3. c4 {[%clk 0:03:00]}  c6 {[%clk 0:03:00]} 4. d4 {[%clk 0:03:01]}  Bg4 {[%clk 0:02:56]} 5. h3 {[%clk 0:03:00]}  Bxf3 {[%clk 0:02:55]} 6. Qxf3 {[%clk 0:03:01]}  e6 {[%clk 0:02:55]} 7. Nc3 {[%clk 0:03:01]}  Nbd7 {[%clk 0:02:56]} 8. Bd3 {[%clk 0:03:01]}  Bd6 {[%clk 0:02:56]} 9. O-O {[%clk 0:03:01]}  O-O {[%clk 0:02:55]} 10. Rd1 {[%clk 0:03:02]}  Qe7 {[%clk 0:02:55]} 11. Qe2 {[%clk 0:03:02]}  Rfd8 {[%clk 0:02:54]} 12. Bd2 {[%clk 0:02:35]}  Rac8 {[%clk 0:02:54]} 13. c5 {[%clk 0:02:33]}  Bc7 {[%clk 0:02:19]} 14. f4 {[%clk 0:02:32]}  g6 {[%clk 0:02:11]} 15. b4 {[%clk 0:02:30]}  a6 {[%clk 0:02:10]} 16. a4 {[%clk 0:02:30]}  Ra8 {[%clk 0:02:03]} 17. b5 {[%clk 0:02:29]}  a5 {[%clk 0:02:00]} 18. b6 {[%clk 0:02:27]}  Bb8 {[%clk 0:01:54]} 19. g4 {[%clk 0:02:25]}  Nxc5 {[%clk 0:01:44]} 20. dxc5 {[%clk 0:02:24]}  Qxc5 {[%clk 0:01:45]} 21. Rdc1 {[%clk 0:02:15]}  Qxb6 {[%clk 0:01:41]} 22. Rab1 {[%clk 0:02:15]}  Qc7 {[%clk 0:01:33]} 23. Qf3 {[%clk 0:02:05]}  Qe7 {[%clk 0:01:31]} 24. Ne2 {[%clk 0:02:03]}  e5 {[%clk 0:01:27]} 25. fxe5 {[%clk 0:01:54]}  Bxe5 {[%clk 0:01:28]} 26. Be1 {[%clk 0:01:51]}  Ne4 {[%clk 0:01:20]} 27. h4 {[%clk 0:01:41]}  Rd7 {[%clk 0:01:11]} 28. Kg2 {[%clk 0:01:40]}  Nc5 {[%clk 0:01:08]} 29. Bc2 {[%clk 0:01:40]}  Bg7 {[%clk 0:01:02]} 30. h5 {[%clk 0:01:28]}  Ne6 {[%clk 0:00:59]} 31. Bd3 {[%clk 0:01:14]}  Nc5 {[%clk 0:00:57]} 32. Bc2 {[%clk 0:01:11]}  Ne6 {[%clk 0:00:58]} 33. Nf4 {[%clk 0:01:08]}  Ng5 {[%clk 0:00:55]} 34. Qe2 {[%clk 0:01:08]}  Re8 {[%clk 0:00:50]} 35. Bxa5 {[%clk 0:01:05]}  d4 {[%clk 0:00:50]} 36. Rf1 {[%clk 0:00:57]}  dxe3 {[%clk 0:00:48]} 37. hxg6 {[%clk 0:00:56]}  hxg6 {[%clk 0:00:39]} 38. Be1 {[%clk 0:00:43]}  Rd4 {[%clk 0:00:30]} 39. Rd1 {[%clk 0:00:27]}  Rxd1 {[%clk 0:00:28]} 40. Bxd1 {[%clk 0:00:28]}  Qe4+ {[%clk 0:00:28]} 41. Kg1 {[%clk 0:00:18]}  Be5 {[%clk 0:00:28]} 42. Ng2 {[%clk 0:00:14]}  Kg7 {[%clk 0:00:24]} 43. Bh4 {[%clk 0:00:12]}  Nh3+ {[%clk 0:00:18]} 44. Kh1 {[%clk 0:00:13]}  Rh8 {[%clk 0:00:17]} 45. Bb3 {[%clk 0:00:08]}  Nf2+ {[%clk 0:00:13]} 46. Kg1 {[%clk 0:00:08]}  Bd4 {[%clk 0:00:11]} 47. Qc4 {[%clk 0:00:04]}  Qf3 {[%clk 0:00:07]} 48. Qxd4+ {[%clk 0:00:03]}  Kg8 {[%clk 0:00:06]} 49. Qxe3 {[%clk 0:00:03]}  Nh3+ {[%clk 0:00:03]} 50. Kh2 {[%clk 0:00:04]}  Qxf1 {[%clk 0:00:03]} 51. Qxh3 {[%clk 0:00:04]}  Qa6 {[%clk 0:00:01]} 52. Qe3 {[%clk 0:00:04]} 1-0


[Site "https://www.chess.com"]

[Event "Titled Tuesday Blitz July 27 2021"]
[White "Nesterov, Arseniy"]
[Black "Gasanov, Zaur"]
[WhiteFideId "24198455"]
[BlackFideId "34125970"]
[WhiteElo "2835"]
[BlackElo "2607"]
[Result "1-0"]
[Round "08"]
[TimeControl "180+1"]
[Date "2021.07.27"]
[WhiteClock "0:02:34"]
[BlackClock "0:01:08"]

1. d4 {[%clk 0:03:00]}  Nf6 {[%clk 0:02:59]} 2. c4 {[%clk 0:03:01]}  g6 {[%clk 0:02:59]} 3. Nc3 {[%clk 0:03:00]}  d5 {[%clk 0:02:59]} 4. cxd5 {[%clk 0:03:01]}  Nxd5 {[%clk 0:02:58]} 5. e4 {[%clk 0:03:02]}  Nxc3 {[%clk 0:02:58]} 6. bxc3 {[%clk 0:03:03]}  Bg7 {[%clk 0:02:58]} 7. Qa4+ {[%clk 0:03:03]}  Nd7 {[%clk 0:02:58]} 8. Nf3 {[%clk 0:03:03]}  O-O {[%clk 0:02:58]} 9. Be2 {[%clk 0:03:03]}  c5 {[%clk 0:02:58]} 10. O-O {[%clk 0:03:03]}  Nb6 {[%clk 0:02:58]} 11. Qa3 {[%clk 0:03:03]}  cxd4 {[%clk 0:02:57]} 12. cxd4 {[%clk 0:03:04]}  Bg4 {[%clk 0:02:58]} 13. Rd1 {[%clk 0:03:04]}  Bxf3 {[%clk 0:02:52]} 14. gxf3 {[%clk 0:03:05]}  Bxd4 {[%clk 0:02:51]} 15. Bg5 {[%clk 0:03:05]}  Bxa1 {[%clk 0:02:37]} 16. Rxd8 {[%clk 0:03:05]}  Rfxd8 {[%clk 0:02:37]} 17. Qxe7 {[%clk 0:03:05]}  Rd7 {[%clk 0:02:31]} 18. Qa3 {[%clk 0:03:04]}  Bd4 {[%clk 0:02:28]} 19. Bb5 {[%clk 0:03:03]}  Rc7 {[%clk 0:02:24]} 20. Qd6 {[%clk 0:03:03]}  Rc5 {[%clk 0:02:13]} 21. h4 {[%clk 0:03:03]}  Bxf2+ {[%clk 0:01:54]} 22. Kxf2 {[%clk 0:03:04]}  Rxb5 {[%clk 0:01:55]} 23. Qd4 {[%clk 0:03:03]}  f6 {[%clk 0:01:29]} 24. Qxf6 {[%clk 0:02:53]}  Rf8 {[%clk 0:01:29]} 25. Qe6+ {[%clk 0:02:50]}  Kg7 {[%clk 0:01:29]} 26. Qe7+ {[%clk 0:02:49]}  Rf7 {[%clk 0:01:15]} 27. Bf6+ {[%clk 0:02:41]}  Kg8 {[%clk 0:01:15]} 28. Qe8+ {[%clk 0:02:40]}  Rf8 {[%clk 0:01:15]} 29. Qxb5 {[%clk 0:02:39]}  Rxf6 {[%clk 0:01:16]} 30. a4 {[%clk 0:02:37]}  Rc6 {[%clk 0:01:11]} 31. a5 {[%clk 0:02:36]}  Nc4 {[%clk 0:01:08]} 32. Qxb7 {[%clk 0:02:34]} 1-0


[Site "https://www.chess.com"]